bitfinex/quotes_BTCUSD_20241011
["timestamp","ask_amount","ask_price","bid_price","bid_amount"]
[1728659140689,0.01596063,61909.0,61908.0,0.99390658]
[1728659140887,0.001636,61912.0,61911.0,0.67594576]
[1728659141100,0.001636,61912.0,61911.0,0.84725506]
[1728659141306,0.001636,61912.0,61911.0,0.85214594]
[1728659142553,0.001636,61912.0,61911.0,0.85714594]
[1728659142704,0.001636,61912.0,61911.0,0.85514594]
[1728659143064,0.001636,61912.0,61911.0,1.01651565]
[1728659143330,0.001636,61912.0,61911.0,1.02751565]
[1728659144136,0.001636,61912.0,61911.0,1.01651565]
[1728659144337,0.001636,61912.0,61911.0,1.02951565]
[1728659145688,0.001636,61912.0,61911.0,1.02451565]
[1728659145912,0.001636,61912.0,61911.0,1.03151565]
[1728659148882,0.001636,61912.0,61911.0,0.79459189]
[1728659149103,0.001636,61912.0,61911.0,1.03151565]
[1728659150693,0.001636,61912.0,61911.0,1.03351565]
[1728659150935,0.001636,61912.0,61911.0,1.03151565]
[1728659151155,0.001636,61912.0,61911.0,1.03351565]
[1728659151804,0.001636,61912.0,61911.0,0.53622218]
[1728659152043,0.001636,61912.0,61911.0,0.29141288]
[1728659152906,0.001636,61912.0,61911.0,0.28441288]
[1728659152907,0.01672595,61912.0,61911.0,0.28441288]
[1728659153152,0.01672595,61912.0,61911.0,0.27141288]
[1728659153376,0.01672595,61912.0,61911.0,0.41932704]
[1728659153591,0.01672595,61912.0,61911.0,0.42432704]
[1728659153811,0.01672595,61912.0,61911.0,0.42832704]
[1728659154031,0.01672637,61912.0,61911.0,0.42832704]
[1728659154460,0.01672637,61912.0,61911.0,0.61879769]
[1728659154908,0.01672637,61912.0,61911.0,0.61479769]
[1728659156795,0.01672637,61912.0,61911.0,0.17641288]
[1728659157481,0.01673296,61912.0,61911.0,0.17641288]
[1728659158338,0.01673296,61912.0,61911.0,0.17341288]
[1728659158551,0.01673296,61912.0,61911.0,0.17841288]
[1728659158979,0.01673296,61912.0,61911.0,0.17341288]
[1728659159194,0.01673296,61912.0,61911.0,0.17941288]
[1728659161226,0.01673296,61912.0,61911.0,0.36988353]
[1728659163376,0.01674245,61912.0,61911.0,0.51475598]
[1728659165424,0.04092526,61912.0,61911.0,0.51475598]
[1728659166558,0.04094382,61912.0,61911.0,0.51475598]
[1728659167197,0.04094382,61912.0,61911.0,0.52962159]
[1728659167705,0.04094382,61912.0,61911.0,0.17941288]
[1728659168124,0.05104787,61912.0,61911.0,0.17941288]
[1728659169225,0.04094382,61912.0,61911.0,0.17941288]
[1728659169964,0.04095416,61912.0,61911.0,0.17941288]
[1728659173408,0.02583422,61912.0,61911.0,0.17941288]
[1728659173660,0.001636,61912.0,61911.0,0.17941288]
[1728659173898,0.04095858,61912.0,61911.0,0.17941288]
[1728659175873,0.04095858,61912.0,61911.0,0.50426936]
[1728659176104,0.04095858,61912.0,61911.0,0.25861288]
[1728659176539,0.04095858,61912.0,61911.0,0.37702585]
[1728659177625,0.04095858,61912.0,61911.0,0.29582585]
[1728659178049,0.04095858,61912.0,61911.0,0.29782585]
[1728659178271,0.04095858,61912.0,61911.0,0.19141288]
[1728659178272,0.05106254,61912.0,61911.0,0.19141288]
[1728659178511,0.05106254,61912.0,61911.0,0.17141288]
[1728659178732,0.05106254,61912.0,61911.0,0.17341288]
[1728659179015,0.05106254,61912.0,61911.0,0.18041288]
[1728659179240,0.05106254,61912.0,61911.0,0.17141288]
[1728659180191,0.05106254,61912.0,61911.0,0.41383908]
[1728659180467,0.05106254,61912.0,61911.0,0.17141288]
[1728659180698,0.04095858,61912.0,61911.0,0.17141288]
[1728659180940,0.0510624,61912.0,61911.0,0.17141288]
[1728659181169,0.04095858,61912.0,61911.0,0.40883908]
[1728659181410,0.04095858,61912.0,61911.0,0.18041288]
[1728659181646,0.04095858,61912.0,61911.0,0.17341288]
[1728659181885,0.05106259,61912.0,61911.0,0.17741288]
[1728659182091,0.05106259,61912.0,61911.0,0.17941288]
[1728659182361,0.05106259,61912.0,61911.0,0.17341288]
[1728659182570,0.05106259,61912.0,61911.0,0.17841288]
[1728659183633,0.05106259,61912.0,61911.0,0.17641288]
[1728659184853,0.05106259,61912.0,61911.0,0.27159352]
[1728659185101,0.04095858,61912.0,61911.0,0.17641288]
[1728659185340,0.04095858,61912.0,61911.0,0.36690748]
[1728659185859,0.04095858,61912.0,61911.0,0.36190748]
[1728659186072,0.04095858,61912.0,61911.0,0.36990748]
[1728659186781,0.05106258,61912.0,61911.0,0.36990748]
[1728659187015,0.04095858,61912.0,61911.0,0.37390748]
[1728659187259,0.05106213,61912.0,61911.0,0.75732853]
[1728659187509,0.05106213,61912.0,61911.0,0.51490233]
[1728659187510,0.04095858,61912.0,61911.0,0.51490233]
[1728659187742,0.04095858,61912.0,61911.0,0.51790233]
[1728659189328,0.04095858,61912.0,61911.0,0.37290748]
[1728659189881,0.05110057,61912.0,61911.0,0.37290748]
[1728659191288,0.03599688,61912.0,61911.0,0.37290748]
[1728659191538,0.03681488,61912.0,61911.0,0.37290748]
[1728659193228,0.03681488,61912.0,61911.0,0.18241288]
[1728659193491,0.03681488,61912.0,61911.0,0.17741288]
[1728659193492,0.04691877,61912.0,61911.0,0.17741288]
[1728659195380,0.06880065,61912.0,61911.0,0.01589088]
[1728659195583,0.04691877,61912.0,61911.0,0.17741288]
[1728659196049,0.04691877,61912.0,61911.0,0.01589088]
[1728659196261,0.04691877,61912.0,61911.0,0.17441288]
[1728659196484,0.04691877,61912.0,61911.0,0.16641288]
[1728659196725,0.0351453,61912.0,61911.0,0.16641288]
[1728659196956,0.04524858,61912.0,61911.0,0.16641288]
[1728659197438,0.04524858,61912.0,61911.0,0.16841288]
[1728659197672,0.03514388,61912.0,61911.0,0.16841288]
[1728659197900,0.03514388,61912.0,61911.0,0.17341288]
[1728659198113,0.03514388,61912.0,61911.0,0.01189088]
[1728659198329,0.03514388,61912.0,61911.0,0.17341288]
[1728659199538,0.03514388,61912.0,61911.0,0.01189088]
[1728659199539,0.37686288,61912.0,61911.0,0.01189088]
[1728659199767,0.54617218,61912.0,61911.0,0.01189088]
[1728659199987,0.59460586,61912.0,61911.0,0.007]
[1728659200200,0.5118463,61912.0,61911.0,0.005]
[1728659200415,0.59461058,61912.0,61911.0,0.005]
[1728659200623,0.54617594,61912.0,61911.0,0.005]
[1728659200831,0.259524,61910.0,61909.0,0.001636]
[1728659201035,0.29385364,61910.0,61909.0,0.001636]
[1728659201267,0.29385364,61910.0,61909.0,0.0069953]
[1728659203280,0.14745754,61910.0,61909.0,0.0069953]
[1728659203536,0.30995656,61910.0,61909.0,0.0069953]
[1728659204420,0.14843256,61910.0,61909.0,0.0069953]
[1728659205156,0.14843256,61910.0,61909.0,0.20177453]
[1728659205368,0.05043256,61910.0,61909.0,0.1685223]
[1728659206258,0.0393268,61910.0,61909.0,0.1685223]
[1728659206493,0.0403268,61910.0,61909.0,0.1685223]
[1728659206993,0.04943114,61910.0,61909.0,0.1685223]
[1728659207206,0.000818,61912.0,61911.0,0.166522]
[1728659207418,0.05024082,61912.0,61911.0,0.3570166]
[1728659207660,0.04013673,61912.0,61911.0,0.36254425]
[1728659208989,0.04013673,61912.0,61911.0,0.37054425]
[1728659209419,0.04013673,61912.0,61911.0,0.18004965]
[1728659209649,0.05024078,61912.0,61911.0,0.18004965]
[1728659209866,0.05024078,61912.0,61911.0,0.18304965]
[1728659210275,0.04013673,61912.0,61911.0,0.18304965]
[1728659210751,0.000818,61912.0,61911.0,0.18304965]
[1728659210978,0.04013544,61912.0,61911.0,0.18304965]
[1728659214169,0.000818,61912.0,61911.0,0.18304965]
[1728659214393,0.04013603,61912.0,61911.0,0.18304965]
[1728659217812,0.000818,61912.0,61911.0,0.18304965]
[1728659218029,0.04013918,61912.0,61911.0,0.18304965]
[1728659219602,0.04013918,61912.0,61911.0,0.17204965]
[1728659220026,0.04013918,61912.0,61911.0,0.17904965]
[1728659220776,0.000818,61912.0,61911.0,0.17904965]
[1728659221000,0.05024912,61912.0,61911.0,0.17904965]
[1728659223424,0.04014982,61912.0,61911.0,0.36954425]
[1728659223880,0.04014742,61912.0,61911.0,0.36954425]
[1728659224110,0.04922344,61912.0,61911.0,0.36954425]
[1728659224321,0.04014742,61912.0,61911.0,0.36954425]
[1728659225214,0.04014742,61912.0,61911.0,0.50523181]
[1728659225433,0.04014742,61912.0,61911.0,0.36954425]
[1728659226311,0.04014742,61912.0,61911.0,0.37118025]
[1728659227448,0.04014121,61912.0,61911.0,0.37118025]
[1728659227896,0.04014121,61912.0,61911.0,0.61360645]
[1728659228132,0.04014121,61912.0,61911.0,0.37118025]
[1728659228594,0.04014121,61912.0,61911.0,0.29909905]
[1728659228853,0.04014121,61912.0,61911.0,0.4477536]
[1728659232862,0.04014121,61912.0,61911.0,0.9400891]
[1728659233094,0.04014121,61912.0,61911.0,0.6976629]
[1728659233687,0.01594231,61912.0,61911.0,0.7976629]
[1728659234286,0.01594231,61912.0,61911.0,1.1585025]
[1728659234503,0.000818,61912.0,61911.0,1.05779708]
[1728659234672,0.000818,61912.0,61911.0,1.26765853]
[1728659234868,0.000818,61912.0,61911.0,1.13012475]
[1728659235058,0.000818,61912.0,61911.0,1.26761326]
[1728659235464,0.000818,61912.0,61911.0,1.13012475]
[1728659235702,0.000818,61912.0,61911.0,0.81497028]
[1728659235912,0.000818,61912.0,61911.0,1.06579708]
[1728659236113,0.000818,61912.0,61911.0,1.06479708]
[1728659236315,0.000818,61912.0,61911.0,1.05079708]
[1728659236527,0.000818,61912.0,61911.0,1.07757586]
[1728659236751,0.000818,61912.0,61911.0,0.88716743]
[1728659236992,0.000818,61912.0,61911.0,1.06657586]
[1728659237201,0.000818,61912.0,61911.0,1.07857586]
[1728659237418,0.000818,61912.0,61911.0,1.03037871]
[1728659237628,0.000818,61912.0,61911.0,0.88865793]
[1728659237849,0.01594238,61912.0,61911.0,0.88865793]
[1728659241202,0.000818,61912.0,61911.0,0.88865793]
[1728659241405,0.0159411,61912.0,61911.0,0.88865793]
[1728659242402,0.000818,61912.0,61911.0,0.93889412]
[1728659242838,0.000818,61912.0,61911.0,0.88865793]
[1728659243383,0.000818,61912.0,61911.0,0.98445793]
[1728659243849,0.000818,61912.0,61911.0,1.22688413]
[1728659244033,0.000818,61912.0,61911.0,0.98445793]
[1728659245142,0.000818,61912.0,61911.0,1.0346785]
[1728659245349,0.000818,61912.0,61911.0,0.98445793]
[1728659247960,0.000818,61912.0,61911.0,0.99895695]
[1728659249957,0.000818,61912.0,61911.0,1.04917256]
[1728659250168,0.000818,61912.0,61911.0,1.09736597]
[1728659250384,0.000818,61912.0,61911.0,1.24158099]
[1728659250607,0.000818,61912.0,61911.0,1.17631358]
[1728659250821,0.000818,61912.0,61911.0,1.19531358]
[1728659252086,0.000818,61912.0,61911.0,1.37172201]
[1728659252301,0.000818,61912.0,61911.0,1.48208755]
[1728659252549,0.000818,61912.0,61911.0,1.38572201]
[1728659253034,0.0005,61919.0,61918.0,0.64731986]
[1728659253250,0.0005,61919.0,61918.0,0.94616535]
[1728659253465,0.0005,61919.0,61918.0,0.95157008]
[1728659253895,0.0005,61919.0,61918.0,1.02807008]
[1728659254533,0.0005,61919.0,61918.0,1.12287008]
[1728659255398,0.0005,61919.0,61918.0,1.13087008]
[1728659255646,0.0005,61919.0,61918.0,1.14387008]
[1728659255861,0.0005,61919.0,61918.0,1.13087008]
[1728659256077,0.0005,61919.0,61918.0,1.13287008]
[1728659256317,0.0005,61919.0,61918.0,1.14487008]
[1728659256804,0.0005,61919.0,61918.0,1.13687008]
[1728659257438,0.0005,61919.0,61918.0,1.14687008]
[1728659258316,0.0005,61919.0,61918.0,0.76605322]
[1728659258540,0.0005,61919.0,61918.0,1.12109842]
[1728659260529,0.001318,61919.0,61918.0,1.12109842]
[1728659262433,0.001318,61919.0,61918.0,1.13596429]
[1728659263274,0.001318,61919.0,61918.0,1.01761589]
[1728659266150,0.001318,61919.0,61918.0,1.13111581]
[1728659266381,0.001636,61931.0,61918.0,1.13111581]
[1728659266382,0.001636,61931.0,61930.0,0.166472]
[1728659266591,0.001636,61931.0,61930.0,0.3357813]
[1728659266803,0.001636,61931.0,61930.0,0.34115261]
[1728659268976,0.001636,61931.0,61930.0,0.35515261]
[1728659269183,0.001636,61931.0,61930.0,0.34115261]
[1728659269396,0.001636,61931.0,61930.0,0.37754991]
[1728659269599,0.001636,61931.0,61930.0,0.39154991]
[1728659269805,0.001636,61931.0,61930.0,0.38254991]
[1728659270015,0.001636,61931.0,61930.0,0.39154991]
[1728659275673,0.001636,61931.0,61930.0,0.38254991]
[1728659275906,0.001636,61931.0,61930.0,0.37854991]
[1728659276119,0.001636,61931.0,61930.0,0.39254991]
[1728659276785,0.001636,61931.0,61930.0,0.38254991]
[1728659277496,0.001636,61931.0,61930.0,0.36854991]
[1728659277780,0.001636,61931.0,61930.0,0.38254991]
[1728659278284,0.001636,61931.0,61930.0,0.39254991]
[1728659279226,0.001636,61931.0,61930.0,0.37854991]
[1728659279654,0.001636,61931.0,61930.0,0.36854991]
[1728659279864,0.001636,61931.0,61930.0,0.37854991]
[1728659280493,0.001636,61931.0,61930.0,0.39254991]
[1728659280711,0.001636,61931.0,61930.0,0.73497611]
[1728659280925,0.001636,61931.0,61930.0,0.70696071]
[1728659281159,0.001636,61931.0,61930.0,0.71096071]
[1728659281411,0.001636,61931.0,61930.0,0.71996071]
[1728659281907,0.001636,61931.0,61930.0,0.71096071]
[1728659282183,0.001636,61931.0,61930.0,0.70696071]
[1728659282436,0.001636,61931.0,61930.0,0.72096071]
[1728659283317,0.001636,61931.0,61930.0,0.62346071]
[1728659283532,0.001636,61931.0,61930.0,0.86015751]
[1728659296126,0.001636,61931.0,61930.0,0.90834913]
[1728659296636,0.001636,61931.0,61930.0,0.86015751]
[1728659296851,0.001636,61931.0,61930.0,0.90834913]
[1728659298189,0.001636,61931.0,61930.0,1.15077533]
[1728659298401,0.0916,61951.0,61940.0,0.7962912]
[1728659298612,0.2585554,61950.0,61949.0,0.161423]
[1728659298827,0.0161292,61950.0,61949.0,0.5042915]
[1728659299041,0.0161292,61950.0,61949.0,0.50979734]
[1728659300165,0.0161292,61950.0,61949.0,0.96317194]
[1728659300408,0.0161292,61950.0,61949.0,1.04917194]
[1728659300622,0.0161292,61950.0,61949.0,0.94002656]
[1728659300867,0.0161292,61950.0,61949.0,0.95002656]
[1728659301288,0.0161292,61950.0,61949.0,0.95502656]
[1728659303259,0.0161292,61950.0,61949.0,0.76647731]
[1728659303482,0.09549551,61966.0,61952.0,0.4031118]
[1728659303714,0.00019551,61966.0,61952.0,0.78400161]
[1728659303927,0.00019551,61966.0,61952.0,0.78948549]
[1728659304149,0.00019551,61966.0,61952.0,1.03191169]
[1728659304402,0.00019551,61966.0,61952.0,0.78948549]
[1728659305057,0.00019551,61966.0,61952.0,0.79748549]
[1728659305501,0.00019551,61966.0,61952.0,0.88948549]
[1728659305929,0.00019551,61966.0,61952.0,1.01283389]
[1728659306160,0.00019551,61966.0,61958.0,0.266399]
[1728659306399,0.00019551,61966.0,61958.0,0.70302975]
[1728659306615,0.00019551,61966.0,61958.0,0.70527442]
[1728659307290,0.00019551,61966.0,61958.0,1.02840062]
[1728659307514,0.00019551,61966.0,61958.0,0.78597442]
[1728659307737,0.00019551,61966.0,61958.0,0.79097442]
[1728659308884,0.00019551,61966.0,61958.0,0.80097442]
[1728659309584,0.1717,61961.0,61958.0,0.45618032]
[1728659309809,0.1717,61961.0,61958.0,0.47452872]
[1728659310037,0.1717,61961.0,61958.0,0.02047202]
[1728659310277,0.1722,61959.0,61958.0,0.02047202]
[1728659310509,0.1872684,61959.0,61958.0,0.02241613]
[1728659310743,0.1872684,61959.0,61958.0,0.015]
[1728659310969,0.1722,61959.0,61958.0,0.01741613]
[1728659311220,0.1722,61959.0,61958.0,0.18581513]
[1728659311474,0.1722,61959.0,61958.0,0.2547687]
[1728659312150,0.1722,61959.0,61958.0,0.17881513]
[1728659312378,0.1722,61959.0,61958.0,0.16881513]
[1728659312604,0.1722,61959.0,61958.0,0.36201911]
[1728659312816,0.1722,61959.0,61958.0,0.35901911]
[1728659313289,0.1722,61959.0,61958.0,0.36201911]
[1728659313504,0.1722,61959.0,61958.0,0.51980794]
[1728659313926,0.0005,61959.0,61958.0,0.68911724]
[1728659314138,0.0005,61959.0,61958.0,0.88432122]
[1728659314359,0.0005,61959.0,61958.0,0.69411724]
[1728659314829,0.0005,61959.0,61958.0,0.88432122]
[1728659315066,0.0005,61959.0,61958.0,0.69511724]
[1728659315313,0.0005,61959.0,61958.0,0.88232122]
[1728659315803,0.0005,61959.0,61958.0,0.98832122]
[1728659316044,0.0005,61959.0,61958.0,0.98232122]
[1728659316291,0.0005,61959.0,61958.0,0.98832122]
[1728659316524,0.0005,61959.0,61958.0,0.98732122]
[1728659316731,0.0005,61959.0,61958.0,0.98832122]
[1728659317855,0.00019551,61966.0,61965.0,0.005]
[1728659318075,0.000818,61993.0,61981.0,0.005]
[1728659318319,0.000818,61993.0,61981.0,0.48228298]
[1728659318320,0.2424262,61983.0,61981.0,0.48228298]
[1728659318611,0.000818,61993.0,61981.0,0.48799965]
[1728659319038,0.000818,61993.0,61981.0,0.65730895]
[1728659319471,0.000818,61993.0,61981.0,0.67130895]
[1728659320131,0.000818,61993.0,61981.0,0.69930895]
[1728659320403,0.000818,61993.0,61981.0,0.67130895]
[1728659320639,0.000818,61993.0,61981.0,0.65730895]
[1728659320854,0.000818,61993.0,61988.0,0.166321]
[1728659321077,0.000818,61993.0,61988.0,0.7131767]
[1728659321503,0.000818,61993.0,61988.0,0.63331788]
[1728659322126,0.000818,61993.0,61988.0,0.4431139]
[1728659322391,0.000818,61993.0,61988.0,0.4531139]
[1728659323725,0.000818,61993.0,61988.0,0.4591139]
[1728659327006,0.02001635,61989.0,61988.0,0.4591139]
[1728659327234,0.02001651,61989.0,61988.0,0.62048361]
[1728659327454,0.02001819,61989.0,61988.0,0.62048361]
[1728659327675,0.005,61989.0,61988.0,0.62548361]
[1728659328101,0.005,61989.0,61988.0,0.61548361]
[1728659328312,0.005,61989.0,61988.0,0.62948361]
[1728659328786,0.005,61989.0,61988.0,0.61548361]
[1728659328995,0.005,61989.0,61988.0,0.62348361]
[1728659329419,0.005,61989.0,61988.0,0.63348361]
[1728659329835,0.005818,61989.0,61988.0,0.62348361]
[1728659330070,0.005818,61989.0,61988.0,0.63348361]
[1728659332040,0.005818,61989.0,61988.0,0.63548361]
[1728659334488,0.005818,61989.0,61988.0,0.63348361]
[1728659334704,0.005818,61989.0,61988.0,0.82368759]
[1728659334705,0.02081714,61989.0,61988.0,0.82368759]
[1728659335119,0.005818,61989.0,61988.0,0.82368759]
[1728659335353,0.02081699,61989.0,61988.0,0.82368759]
[1728659336417,0.000818,61993.0,61992.0,0.27089687]
[1728659336639,0.00595,62006.0,61998.0,0.46108485]
[1728659336848,0.01549558,61999.0,61998.0,0.44019017]
[1728659337061,0.01549558,61999.0,61998.0,0.44832976]
[1728659337272,0.01549558,61999.0,61998.0,0.57670303]
[1728659337486,0.0394892,61999.0,61998.0,0.81912923]
[1728659337714,0.0394892,61999.0,61998.0,0.57670303]
[1728659337934,0.01549558,61999.0,61998.0,0.57670303]
[1728659338162,0.01549558,61999.0,61998.0,0.59070303]
[1728659338415,0.03948531,61999.0,61998.0,0.57670303]
[1728659338634,0.01549558,61999.0,61998.0,0.59070303]
[1728659339069,0.01549558,61999.0,61998.0,0.57670303]
[1728659339303,0.01549287,61999.0,61998.0,0.60470303]
[1728659340591,0.03949254,61999.0,61998.0,0.60470303]
[1728659341482,0.03949254,61999.0,61998.0,0.84712923]
[1728659341911,0.00595,62006.0,61999.0,0.00458587]
[1728659342123,0.00595,62006.0,61999.0,0.48892361]
[1728659342344,0.00595,62006.0,61999.0,0.49545424]
[1728659342568,0.00595,62006.0,62005.0,0.16586287]
[1728659342792,0.08935678,62013.0,62005.0,0.16586287]
[1728659342793,0.001,62032.0,62025.0,0.261225]
[1728659343010,0.001,62032.0,62025.0,0.161225]
[1728659343226,0.001,62032.0,62025.0,0.00738415]
[1728659343227,0.1762,62026.0,62025.0,0.00738415]
[1728659343664,0.0831,62025.0,62017.0,0.26765309]
[1728659343884,0.0831,62025.0,62021.0,0.161234]
[1728659344111,0.0831,62025.0,62024.0,0.00160121]
[1728659344780,0.0831,62025.0,62024.0,0.16282821]
[1728659344991,0.0831,62025.0,62024.0,0.00160121]
[1728659345444,0.0831,62025.0,62024.0,0.19280519]
[1728659345683,0.0831,62025.0,62024.0,0.21535683]
[1728659345891,0.0831,62025.0,62024.0,0.05412983]
[1728659346151,0.0831,62025.0,62024.0,0.00260121]
[1728659346577,0.08,62026.0,62024.0,0.00260121]
[1728659346789,0.08,62026.0,62025.0,0.00160121]
[1728659347000,0.08,62026.0,62025.0,0.16282621]
[1728659347424,0.08,62026.0,62025.0,0.00160121]
[1728659347633,0.08,62026.0,62025.0,0.16282621]
[1728659347849,0.08,62026.0,62025.0,0.21435303]
[1728659348068,0.08,62026.0,62025.0,0.00160121]
[1728659348549,0.08,62026.0,62025.0,0.00760121]
[1728659348799,0.08,62026.0,62025.0,0.00260121]
[1728659349028,0.08,62026.0,62025.0,0.00160121]
[1728659349598,0.08,62026.0,62025.0,0.16982621]
[1728659349811,0.08,62026.0,62025.0,0.00860121]
[1728659349812,0.10836726,62026.0,62025.0,0.00860121]
[1728659350021,0.08,62026.0,62025.0,0.01460121]
[1728659350250,0.10007261,62026.0,62025.0,0.01460121]
[1728659350462,0.075,62026.0,62025.0,0.00860121]
[1728659350680,0.075,62026.0,62025.0,0.00460121]
[1728659350895,0.075,62026.0,62025.0,0.17398127]
[1728659351112,0.075,62026.0,62025.0,0.01275627]
[1728659351558,0.075,62026.0,62025.0,0.00975627]
[1728659352022,0.09906538,62026.0,62025.0,0.00975627]
[1728659353278,0.09906538,62026.0,62025.0,0.01375627]
[1728659353702,0.09906538,62026.0,62025.0,0.00975627]
[1728659353916,0.11492779,62026.0,62025.0,0.01375627]
[1728659354335,0.11492779,62026.0,62025.0,0.00560121]
[1728659354590,0.11492779,62026.0,62015.0,0.24701207]
[1728659354803,0.03911079,62025.0,62022.0,0.2424262]
[1728659355010,0.03911079,62025.0,62020.0,0.161237]
[1728659355219,0.03911079,62024.0,62023.0,0.0081508]
[1728659355423,0.03911079,62024.0,62017.0,0.322491]
[1728659355651,0.075817,62026.0,62023.0,0.0081508]
[1728659355865,0.12063999,62025.0,62015.0,0.2424262]
[1728659356072,0.03913999,62024.0,62018.0,0.322487]
[1728659356283,0.03913999,62023.0,62018.0,0.322487]
[1728659356498,0.03913999,62022.0,62016.0,0.322492]
[1728659356707,0.0815,62025.0,62017.0,0.161244]
[1728659356708,0.03913999,62021.0,62017.0,0.161244]
[1728659356931,0.06423758,62020.0,62018.0,0.322486]
[1728659357144,0.02509759,62020.0,62019.0,0.26945931]
[1728659357364,0.0815,62025.0,62020.0,0.161237]
[1728659357572,0.0815,62025.0,62019.0,0.16124]
[1728659357573,0.03916276,62024.0,62019.0,0.16124]
[1728659357780,0.03916276,62023.0,62019.0,0.16124]
[1728659357989,0.03916276,62022.0,62018.0,0.161241]
[1728659358229,0.03776276,62021.0,62020.0,0.161237]
[1728659358696,0.02410415,62021.0,62019.0,0.161239]
[1728659358937,0.02410415,62020.0,62019.0,0.161239]
[1728659359353,0.02410415,62020.0,62019.0,0.167239]
[1728659359585,0.02410415,62020.0,62019.0,0.161239]
[1728659359794,0.02410415,62020.0,62017.0,0.161243]
[1728659360008,0.02410415,62019.0,62018.0,0.161241]
[1728659361313,0.02410415,62019.0,62018.0,0.168241]
[1728659361528,0.02410415,62019.0,62018.0,0.007]
[1728659362360,0.02410415,62019.0,62018.0,0.171243]
[1728659362776,0.02410415,62019.0,62018.0,0.01]
[1728659362978,0.02410415,62019.0,62018.0,0.171243]
[1728659365498,0.02360415,62019.0,62018.0,0.171243]
[1728659365701,0.0815,62025.0,62019.0,0.161239]
[1728659365905,0.0815,62025.0,62021.0,0.161235]
[1728659366115,0.0815,62025.0,62018.0,0.01]
[1728659366334,0.0815,62025.0,62019.0,0.16124]
[1728659366546,0.0815,62025.0,62020.0,0.161237]
[1728659366750,0.0815,62025.0,62019.0,0.161239]
[1728659366958,0.12254461,62025.0,62019.0,0.161239]
[1728659367169,0.000818,62020.0,62019.0,0.161239]
[1728659367596,0.000818,62020.0,62018.0,0.002636]
[1728659367815,0.000818,62020.0,62005.0,0.322551]
[1728659367816,0.16126,62012.0,62000.0,0.00458587]
[1728659368045,0.16122401,62012.0,61999.0,0.5650112]
[1728659368266,0.17811413,62015.0,62011.0,0.16126]
[1728659368493,0.17811413,62015.0,62014.0,0.161253]
[1728659368494,0.1777,62015.0,62014.0,0.161253]
[1728659368724,0.000818,62020.0,62019.0,0.16124]
[1728659368945,0.000818,62020.0,62014.0,0.322505]
[1728659369168,0.000818,62020.0,62019.0,0.16224]
[1728659369391,0.01590541,62020.0,62014.0,0.322505]
[1728659369642,0.01508741,62019.0,62018.0,0.161243]
[1728659369886,0.01508741,62019.0,62011.0,0.322523]
[1728659370111,0.000818,62020.0,62014.0,0.2424262]
[1728659370112,0.09098741,62018.0,62014.0,0.2424262]
[1728659370355,0.01508795,62017.0,62013.0,0.32251]
[1728659370575,0.01508795,62016.0,62015.0,0.16125]
[1728659370797,0.01508795,62016.0,62014.0,0.322507]
[1728659371055,0.000818,62020.0,62014.0,0.322507]
[1728659371265,0.01508681,62019.0,62018.0,0.161243]
[1728659371907,0.01508681,62019.0,62018.0,0.004]
[1728659372125,0.0502515,62019.0,62014.0,0.001]
[1728659372354,0.01508681,62018.0,62015.0,0.5649252]
[1728659372578,0.01508681,62018.0,62017.0,0.161246]
[1728659372798,0.01508405,62017.0,62015.0,0.41255336]
[1728659373066,0.001,62019.0,62017.0,0.00886926]
[1728659373333,0.03016822,62018.0,62017.0,0.161245]
[1728659373542,0.03016822,62018.0,62016.0,0.322497]
[1728659373754,0.001,62019.0,62016.0,0.322497]
[1728659373755,0.001,62019.0,62018.0,0.161243]
[1728659373971,0.03116492,62019.0,62018.0,0.161243]
[1728659374194,0.03016492,62019.0,62018.0,0.161243]
[1728659374623,0.04021715,62019.0,62018.0,0.161243]
[1728659374835,0.01508246,62019.0,62018.0,0.161243]
[1728659375048,0.04021726,62019.0,62018.0,0.161243]
[1728659375258,0.04221726,62019.0,62018.0,0.161243]
[1728659375476,0.01708246,62019.0,62018.0,0.161243]
[1728659375689,0.04121022,62019.0,62018.0,0.163243]
[1728659376113,0.002,62019.0,62018.0,0.163243]
[1728659376335,0.04120722,62019.0,62018.0,0.163243]
[1728659376553,0.01708011,62019.0,62018.0,0.163243]
[1728659376765,0.04120829,62019.0,62018.0,0.163243]
[1728659377424,0.04120829,62019.0,62018.0,0.002]
[1728659377425,0.04121344,62019.0,62018.0,0.002]
[1728659377649,0.08143278,62019.0,62018.0,0.002]
[1728659377859,0.08969942,62019.0,62018.0,0.002]
[1728659379424,0.0645626,62019.0,62018.0,0.003636]
[1728659379632,0.04949178,62019.0,62018.0,0.003636]
[1728659379901,0.06457843,62019.0,62018.0,0.003636]
[1728659382281,0.06457843,62019.0,62018.0,0.01252497]
[1728659382499,0.06457843,62019.0,62018.0,0.003636]
[1728659382712,0.06457843,62019.0,62018.0,0.01252497]
[1728659382985,0.07467023,62019.0,62018.0,0.01252555]
[1728659383609,0.23591023,62019.0,62018.0,0.01252555]
[1728659384024,0.31131023,62019.0,62018.0,0.01252555]
[1728659384233,0.28795273,62019.0,62018.0,0.01252555]
[1728659384441,0.28795273,62019.0,62018.0,0.003636]
[1728659384878,0.28795273,62019.0,62018.0,0.01369142]
[1728659385141,0.28795273,62019.0,62018.0,0.17493442]
[1728659385142,0.05131273,62019.0,62018.0,0.17493442]
[1728659385790,0.05131273,62019.0,62018.0,0.01369142]
[1728659386903,0.05131273,62019.0,62018.0,0.17493442]
[1728659387576,0.05131273,62019.0,62018.0,0.01369142]
[1728659387803,0.05131273,62019.0,62018.0,0.17493442]
[1728659388262,0.07647493,62019.0,62018.0,0.17493442]
[1728659388480,0.07647662,62019.0,62018.0,0.17493442]
[1728659388694,0.05131273,62019.0,62018.0,0.01369142]
[1728659388924,0.25252789,62019.0,62018.0,0.01369142]
[1728659389137,0.11645178,62019.0,62018.0,0.01369142]
[1728659389359,0.05131273,62019.0,62018.0,0.01369142]
[1728659389574,0.05071273,62019.0,62018.0,0.01369142]
[1728659390632,0.05071273,62019.0,62018.0,0.17493442]
[1728659391072,0.07587989,62019.0,62018.0,0.01369142]
[1728659391541,0.30317073,62019.0,62018.0,0.01369142]
[1728659391928,0.14193073,62019.0,62018.0,0.003636]
[1728659392161,0.30317073,62019.0,62018.0,0.003636]
[1728659392375,0.30317073,62019.0,62018.0,0.0136914]
[1728659392636,0.05153073,62019.0,62018.0,0.003636]
[1728659392845,0.05153073,62019.0,62018.0,0.0136914]
[1728659393066,0.07674192,62019.0,62018.0,0.003636]
[1728659393275,0.07674192,62019.0,62018.0,0.1749344]